[Event "*** Titled Tuesday Blitz"]
[Site "Chess.com"]
[Date "2021.02.09"]
[Round "8"]
[White "Jospem"]
[Black "Sam_ChessMood"]
[Result "0-1"]
[WhiteElo "3018"]
[BlackElo "2860"]
[TimeControl "180+1"]
[EndTime "11:30:35 PST"]
[Termination "Sam_ChessMood won on time"]

1. e4 {[%clk 0:03:00.9]} 1... e5 {[%clk 0:03:00.2]} 2. Nf3 {[%clk 0:03:00.7]}
2... Nf6 {[%clk 0:03:00.8]} 3. Nxe5 {[%clk 0:03:00.3]} 3... d6 {[%clk
0:03:00.7]} 4. Nf3 {[%clk 0:02:59.7]} 4... Nxe4 {[%clk 0:03:01]} 5. Nc3 {[%clk
0:03:00.6]} 5... Nxc3 {[%clk 0:03:01.3]} 6. dxc3 {[%clk 0:03:01.5]} 6... Be7
{[%clk 0:03:01.8]} 7. Bf4 {[%clk 0:03:01.4]} 7... O-O {[%clk 0:03:01.4]} 8. Qd2
{[%clk 0:03:02.1]} 8... Nc6 {[%clk 0:02:55.2]} 9. O-O-O {[%clk 0:03:01.6]} 9...
Be6 {[%clk 0:02:55.8]} 10. Kb1 {[%clk 0:02:45.2]} 10... Qd7 {[%clk 0:02:50.7]}
11. Ng5 {[%clk 0:02:43.8]} 11... Bxg5 {[%clk 0:02:49]} 12. Bxg5 {[%clk
0:02:44.7]} 12... Rae8 {[%clk 0:02:47.3]} 13. f3 {[%clk 0:02:43.2]} 13... Ne5
{[%clk 0:02:41.8]} 14. h4 {[%clk 0:02:38.5]} 14... Bf5 {[%clk 0:02:37.4]} 15. h5
{[%clk 0:02:35.1]} 15... h6 {[%clk 0:02:31.8]} 16. Bf4 {[%clk 0:02:35.2]} 16...
Bh7 {[%clk 0:02:24.9]} 17. Be2 {[%clk 0:02:29]} 17... f6 {[%clk 0:02:05.2]} 18.
g4 {[%clk 0:02:25.9]} 18... Kh8 {[%clk 0:02:04]} 19. Rhf1 {[%clk 0:02:12.9]}
19... Qc6 {[%clk 0:02:01.9]} 20. b3 {[%clk 0:02:03.8]} 20... a6 {[%clk
0:01:57.6]} 21. Be3 {[%clk 0:02:01.1]} 21... Nd7 {[%clk 0:01:38.7]} 22. Rfe1
{[%clk 0:01:45.3]} 22... Ne5 {[%clk 0:01:29.4]} 23. Rf1 {[%clk 0:01:41]} 23...
Nd7 {[%clk 0:01:28.9]} 24. Bd4 {[%clk 0:01:31.8]} 24... Nc5 {[%clk 0:01:21.7]}
25. Rde1 {[%clk 0:01:22.9]} 25... b5 {[%clk 0:01:10.1]} 26. Ka1 {[%clk
0:01:14.9]} 26... Re6 {[%clk 0:01:02]} 27. Bd1 {[%clk 0:01:07.1]} 27... Rfe8
{[%clk 0:01:02.2]} 28. Rxe6 {[%clk 0:01:06.9]} 28... Nxe6 {[%clk 0:01:01.4]} 29.
Be3 {[%clk 0:01:05.1]} 29... a5 {[%clk 0:00:54.5]} 30. Re1 {[%clk 0:01:04.5]}
30... a4 {[%clk 0:00:53.5]} 31. Kb2 {[%clk 0:00:57.6]} 31... axb3 {[%clk
0:00:51.3]} 32. cxb3 {[%clk 0:00:57.1]} 32... Ng5 {[%clk 0:00:22.1]} 33. Bxg5
{[%clk 0:00:53.3]} 33... hxg5 {[%clk 0:00:21.4]} 34. Re3 {[%clk 0:00:50.9]}
34... Kg8 {[%clk 0:00:16.8]} 35. Be2 {[%clk 0:00:47.6]} 35... Kf8 {[%clk
0:00:14.9]} 36. Qd4 {[%clk 0:00:42.5]} 36... Rxe3 {[%clk 0:00:11.4]} 37. Qxe3
{[%clk 0:00:43.4]} 37... Bg8 {[%clk 0:00:11.6]} 38. Qd3 {[%clk 0:00:39.2]} 38...
Bd5 {[%clk 0:00:09.8]} 39. Qg6 {[%clk 0:00:29.1]} 39... Qd7 {[%clk 0:00:03.4]}
40. h6 {[%clk 0:00:26.3]} 40... gxh6 {[%clk 0:00:03.8]} 41. Qxf6+ {[%clk
0:00:26.8]} 41... Qf7 {[%clk 0:00:04]} 42. Qxh6+ {[%clk 0:00:26.9]} 42... Qg7
{[%clk 0:00:04.6]} 43. Qxg7+ {[%clk 0:00:15.2]} 43... Kxg7 {[%clk 0:00:05.5]}
44. Kc2 {[%clk 0:00:16.1]} 44... Kf6 {[%clk 0:00:04.2]} 45. Kd3 {[%clk
0:00:16.6]} 45... Ke5 {[%clk 0:00:04]} 46. Ke3 {[%clk 0:00:17.2]} 46... c6
{[%clk 0:00:02.7]} 47. c4 {[%clk 0:00:15.2]} 47... bxc4 {[%clk 0:00:02.2]} 48.
Bxc4 {[%clk 0:00:16.1]} 48... Bxc4 {[%clk 0:00:02.5]} 49. bxc4 {[%clk 0:00:17]}
49... d5 {[%clk 0:00:03]} 50. Kd3 {[%clk 0:00:11.4]} 50... Ke6 {[%clk 0:00:02]}
51. a4 {[%clk 0:00:11.4]} 51... Kd6 {[%clk 0:00:02.3]} 52. cxd5 {[%clk
0:00:10.5]} 52... Kxd5 {[%clk 0:00:02.4]} 53. f4 {[%clk 0:00:10.1]} 53... gxf4
{[%clk 0:00:02.3]} 54. g5 {[%clk 0:00:11]} 54... c5 {[%clk 0:00:02.9]} 55. g6
{[%clk 0:00:11.5]} 55... c4+ {[%clk 0:00:03.5]} 56. Ke2 {[%clk 0:00:11.9]} 56...
Ke6 {[%clk 0:00:03.8]} 57. a5 {[%clk 0:00:11.6]} 57... c3 {[%clk 0:00:04.3]} 58.
g7 {[%clk 0:00:11.4]} 58... Kf7 {[%clk 0:00:04.3]} 59. a6 {[%clk 0:00:11.9]}
59... f3+ {[%clk 0:00:05]} 60. Kxf3 {[%clk 0:00:10]} 60... c2 {[%clk 0:00:05.5]}
61. a7 {[%clk 0:00:10.2]} 61... c1=Q {[%clk 0:00:05.8]} 62. a8=Q {[%clk
0:00:11.1]} 62... Qh1+ {[%clk 0:00:04.6]} 63. Kf4 {[%clk 0:00:11]} 63... Qxa8
{[%clk 0:00:05.5]} 0-1

[Event "*** Titled Tuesday Blitz"]
[Site "Chess.com"]
[Date "2021.02.09"]
[Round "8"]
[White "CakeinSpace2002"]
[Black "Pertinhez76"]
[Result "1-0"]
[WhiteElo "2362"]
[BlackElo "2011"]
[TimeControl "180+1"]
[EndTime "11:30:43 PST"]
[Termination "CakeinSpace2002 won on time"]

1. d4 {[%clk 0:02:59.3]} 1... Nf6 {[%clk 0:02:57.4]} 2. c4 {[%clk 0:02:59.6]}
2... e5 {[%clk 0:02:56.5]} 3. e3 {[%clk 0:02:59.2]} 3... Nc6 {[%clk 0:02:51.6]}
4. Nf3 {[%clk 0:02:58.6]} 4... Bb4+ {[%clk 0:02:49.9]} 5. Nc3 {[%clk 0:02:56.4]}
5... Qe7 {[%clk 0:02:48.9]} 6. Be2 {[%clk 0:02:55.1]} 6... d6 {[%clk 0:02:43.5]}
7. d5 {[%clk 0:02:54.2]} 7... Nb8 {[%clk 0:02:42.2]} 8. Bd2 {[%clk 0:02:53.9]}
8... O-O {[%clk 0:02:41]} 9. O-O {[%clk 0:02:52.8]} 9... a5 {[%clk 0:02:40]} 10.
a3 {[%clk 0:02:52.8]} 10... Bxc3 {[%clk 0:02:36.9]} 11. Bxc3 {[%clk 0:02:53.7]}
11... Nbd7 {[%clk 0:02:36.9]} 12. b3 {[%clk 0:02:51.2]} 12... h6 {[%clk
0:02:32.6]} 13. Nd2 {[%clk 0:02:51.2]} 13... e4 {[%clk 0:02:30.9]} 14. Qc2
{[%clk 0:02:50.3]} 14... Re8 {[%clk 0:02:30.4]} 15. b4 {[%clk 0:02:45.8]} 15...
a4 {[%clk 0:02:26.7]} 16. Bb2 {[%clk 0:02:31.4]} 16... Nf8 {[%clk 0:02:24.2]}
17. Nb1 {[%clk 0:02:29]} 17... Ng6 {[%clk 0:02:18]} 18. Nc3 {[%clk 0:02:29.1]}
18... Bd7 {[%clk 0:02:14.7]} 19. Rac1 {[%clk 0:02:15.1]} 19... Nh4 {[%clk
0:02:10.2]} 20. c5 {[%clk 0:02:03.6]} 20... Qe5 {[%clk 0:01:49.5]} 21. Qd1
{[%clk 0:01:38.5]} 21... Qg5 {[%clk 0:01:46.7]} 22. g3 {[%clk 0:01:37.1]} 22...
Bh3 {[%clk 0:01:42.6]} 23. Re1 {[%clk 0:01:34.3]} 23... h5 {[%clk 0:01:35.4]}
24. Nb5 {[%clk 0:01:32.9]} 24... Ng4 {[%clk 0:01:02.8]} 25. Nxc7 {[%clk
0:01:22.7]} 25... Qf5 {[%clk 0:00:52.4]} 26. Rf1 {[%clk 0:01:17.7]} 26... Nf3+
{[%clk 0:00:47.4]} 27. Bxf3 {[%clk 0:01:16.3]} 27... exf3 {[%clk 0:00:46.7]} 28.
Nxa8 {[%clk 0:01:09.5]} 28... Rxa8 {[%clk 0:00:31.6]} 29. Re1 {[%clk 0:01:05.8]}
29... Bg2 {[%clk 0:00:28.9]} 30. Qd4 {[%clk 0:01:02.5]} 30... f6 {[%clk
0:00:27.1]} 31. e4 {[%clk 0:00:48.7]} 31... Qg5 {[%clk 0:00:20.2]} 32. cxd6
{[%clk 0:00:44.7]} 32... Rd8 {[%clk 0:00:18.2]} 33. e5 {[%clk 0:00:42.8]} 33...
Nxe5 {[%clk 0:00:16.9]} 34. Rxe5 {[%clk 0:00:42]} 34... fxe5 {[%clk 0:00:15.8]}
35. Qxe5 {[%clk 0:00:42.9]} 35... Qxe5 {[%clk 0:00:12.1]} 36. Bxe5 {[%clk
0:00:43.8]} 36... Bh3 {[%clk 0:00:11.6]} 37. Rc3 {[%clk 0:00:36.2]} 37... Rd7
{[%clk 0:00:12.5]} 38. Rxf3 {[%clk 0:00:35.9]} 38... Bg4 {[%clk 0:00:10.7]} 39.
Re3 {[%clk 0:00:35.6]} 39... Kf7 {[%clk 0:00:10.6]} 40. Kg2 {[%clk 0:00:35.8]}
40... g5 {[%clk 0:00:09.9]} 41. h3 {[%clk 0:00:35]} 41... Bf5 {[%clk 0:00:09.7]}
42. Rc3 {[%clk 0:00:31.9]} 42... g4 {[%clk 0:00:08.8]} 43. hxg4 {[%clk 0:00:31]}
43... hxg4 {[%clk 0:00:09.7]} 44. Kf1 {[%clk 0:00:29.5]} 44... Be4 {[%clk
0:00:08.8]} 45. Rc5 {[%clk 0:00:29.2]} 45... Kg6 {[%clk 0:00:06.9]} 46. Ke2
{[%clk 0:00:29]} 46... Kf5 {[%clk 0:00:06.2]} 47. Bf4 {[%clk 0:00:29.3]} 47...
Bf3+ {[%clk 0:00:03.9]} 48. Ke3 {[%clk 0:00:29.6]} 48... Rd8 {[%clk 0:00:02.9]}
49. Rc7 {[%clk 0:00:29.4]} 49... Re8+ {[%clk 0:00:03.6]} 50. Kd4 {[%clk
0:00:29.5]} 50... Re4+ {[%clk 0:00:02.8]} 51. Kd3 {[%clk 0:00:29.7]} 51... Be2+
{[%clk 0:00:01.8]} 52. Kd2 {[%clk 0:00:29.9]} 52... Ba6 {[%clk 0:00:02]} 53. d7
{[%clk 0:00:26]} 53... Rd4+ {[%clk 0:00:02.9]} 54. Kc3 {[%clk 0:00:24.7]} 54...
Rxd5 {[%clk 0:00:03.6]} 55. Be3 {[%clk 0:00:12.3]} 55... Rd3+ {[%clk 0:00:04.5]}
56. Kc2 {[%clk 0:00:12.2]} 56... Ke6 {[%clk 0:00:02.6]} 57. b5 {[%clk
0:00:09.6]} 57... Rxd7 {[%clk 0:00:03.5]} 58. Rxd7 {[%clk 0:00:09.3]} 58... Kxd7
{[%clk 0:00:01.5]} 59. bxa6 {[%clk 0:00:10.2]} 59... bxa6 {[%clk 0:00:01.9]} 60.
Kc3 {[%clk 0:00:11.1]} 60... Kc6 {[%clk 0:00:01.1]} 61. Kb4 {[%clk 0:00:12]} 1-0

[Event "*** Titled Tuesday Blitz"]
[Site "Chess.com"]
[Date "2021.02.09"]
[Round "8"]
[White "FontVella8"]
[Black "ukchessbomber"]
[Result "1-0"]
[WhiteElo "2578"]
[BlackElo "2426"]
[TimeControl "180+1"]
[EndTime "11:30:45 PST"]
[Termination "FontVella8 won by checkmate"]

1. e4 {[%clk 0:03:00.9]} 1... g6 {[%clk 0:03:00.8]} 2. d4 {[%clk 0:03:00.8]}
2... Bg7 {[%clk 0:03:01.7]} 3. Nc3 {[%clk 0:03:01.2]} 3... d5 {[%clk 0:03:02.6]}
4. e5 {[%clk 0:03:00.3]} 4... c5 {[%clk 0:03:02.7]} 5. Nf3 {[%clk 0:02:59.1]}
5... Nc6 {[%clk 0:03:03.1]} 6. Bb5 {[%clk 0:02:58.9]} 6... cxd4 {[%clk
0:03:00.7]} 7. Nxd4 {[%clk 0:02:58.7]} 7... Bd7 {[%clk 0:02:59.1]} 8. f4 {[%clk
0:02:57.8]} 8... e6 {[%clk 0:02:58.7]} 9. O-O {[%clk 0:02:57.3]} 9... Nge7
{[%clk 0:02:57.5]} 10. Be3 {[%clk 0:02:55.7]} 10... O-O {[%clk 0:02:56.7]} 11.
Nf3 {[%clk 0:02:52.9]} 11... Nf5 {[%clk 0:02:55.7]} 12. Bf2 {[%clk 0:02:53.3]}
12... h5 {[%clk 0:02:56.2]} 13. Bd3 {[%clk 0:02:49.9]} 13... d4 {[%clk
0:02:51.1]} 14. Ne4 {[%clk 0:02:48.9]} 14... Ne3 {[%clk 0:02:50.8]} 15. Bxe3
{[%clk 0:02:46.5]} 15... dxe3 {[%clk 0:02:51.7]} 16. Qe2 {[%clk 0:02:46.4]}
16... Qb6 {[%clk 0:02:51.7]} 17. c3 {[%clk 0:02:42.8]} 17... Ne7 {[%clk
0:02:49.9]} 18. Nfg5 {[%clk 0:02:30]} 18... Nd5 {[%clk 0:02:40.2]} 19. Kh1
{[%clk 0:02:24.4]} 19... a6 {[%clk 0:02:35]} 20. g4 {[%clk 0:02:22.9]} 20... Bb5
{[%clk 0:01:53.9]} 21. Rad1 {[%clk 0:02:15.6]} 21... Qc6 {[%clk 0:01:10.6]} 22.
c4 {[%clk 0:02:11.7]} 22... Nb4 {[%clk 0:01:06.4]} 23. cxb5 {[%clk 0:02:11.3]}
23... axb5 {[%clk 0:01:07.3]} 24. Bxb5 {[%clk 0:02:09.7]} 24... Qb6 {[%clk
0:01:07.1]} 25. a3 {[%clk 0:02:07.2]} 25... Nd5 {[%clk 0:01:06.2]} 26. Bc4
{[%clk 0:02:07.2]} 26... Rfd8 {[%clk 0:01:00.2]} 27. gxh5 {[%clk 0:02:07.1]}
27... Ra4 {[%clk 0:00:57.8]} 28. hxg6 {[%clk 0:02:05.2]} 28... fxg6 {[%clk
0:00:57.9]} 29. Qc2 {[%clk 0:01:42.7]} 29... Raa8 {[%clk 0:00:47.4]} 30. Nd6
{[%clk 0:01:27.8]} 30... Qc6 {[%clk 0:00:39.6]} 31. Kg1 {[%clk 0:01:17.8]} 31...
Qb6 {[%clk 0:00:28.8]} 32. Be2 {[%clk 0:00:59.9]} 32... Ne7 {[%clk 0:00:17.6]}
33. Nxe6 {[%clk 0:00:53.5]} 33... Rd7 {[%clk 0:00:17.9]} 34. Nxg7 {[%clk
0:00:51.7]} 34... Kxg7 {[%clk 0:00:18.8]} 35. Nc4 {[%clk 0:00:46]} 35... Qc7
{[%clk 0:00:15.2]} 36. Rxd7 {[%clk 0:00:45]} 36... Qxd7 {[%clk 0:00:16.1]} 37.
Nxe3 {[%clk 0:00:45.4]} 37... Qd4 {[%clk 0:00:15.6]} 38. Qd3 {[%clk 0:00:39.3]}
38... Qb6 {[%clk 0:00:14.5]} 39. Qe4 {[%clk 0:00:36.5]} 39... Nf5 {[%clk
0:00:13.1]} 40. Kf2 {[%clk 0:00:31]} 40... Rd8 {[%clk 0:00:12.1]} 41. Rd1 {[%clk
0:00:26.6]} 41... Rh8 {[%clk 0:00:11.7]} 42. Rd7+ {[%clk 0:00:23.6]} 42... Kf8
{[%clk 0:00:11.7]} 43. Qb4+ {[%clk 0:00:19.8]} 43... Qxb4 {[%clk 0:00:11]} 44.
axb4 {[%clk 0:00:20.7]} 44... Rxh2+ {[%clk 0:00:11.2]} 45. Ng2 {[%clk
0:00:21.3]} 45... Nh4 {[%clk 0:00:04.4]} 46. Bf3 {[%clk 0:00:21.2]} 46... Nf5
{[%clk 0:00:03.3]} 47. Rxb7 {[%clk 0:00:20.9]} 47... Rh1 {[%clk 0:00:02.5]} 48.
b5 {[%clk 0:00:20.8]} 48... Rb1 {[%clk 0:00:03.4]} 49. b6 {[%clk 0:00:15.8]}
49... Rxb2+ {[%clk 0:00:04.3]} 50. Kg1 {[%clk 0:00:16.2]} 50... Nd4 {[%clk
0:00:05.2]} 51. Bd5 {[%clk 0:00:14.2]} 51... Ne2+ {[%clk 0:00:05.3]} 52. Kh1
{[%clk 0:00:11.2]} 52... Nc3 {[%clk 0:00:03.8]} 53. Be6 {[%clk 0:00:08.4]} 53...
Ne2 {[%clk 0:00:02]} 54. Rf7+ {[%clk 0:00:08.4]} 54... Ke8 {[%clk 0:00:01.8]}
55. b7 {[%clk 0:00:09.1]} 55... Ng3+ {[%clk 0:00:02.3]} 56. Kh2 {[%clk
0:00:09.1]} 56... Nf1+ {[%clk 0:00:02.9]} 57. Kh3 {[%clk 0:00:09.7]} 57... Nd2
{[%clk 0:00:01.2]} 58. Rh7 {[%clk 0:00:09.1]} 58... Nf3 {[%clk 0:00:01.2]} 59.
Rh8+ {[%clk 0:00:09.1]} 59... Ke7 {[%clk 0:00:02.1]} 60. b8=Q {[%clk 0:00:09.5]}
60... Rxb8 {[%clk 0:00:03]} 61. Rxb8 {[%clk 0:00:09.8]} 61... Ng1+ {[%clk
0:00:03.9]} 62. Kg4 {[%clk 0:00:09.9]} 62... Kxe6 {[%clk 0:00:04.8]} 63. Rb6+
{[%clk 0:00:10.3]} 63... Kf7 {[%clk 0:00:05.2]} 64. f5 {[%clk 0:00:10.1]} 64...
Kg7 {[%clk 0:00:06.1]} 65. Rxg6+ {[%clk 0:00:09.5]} 65... Kf7 {[%clk 0:00:07]}
66. e6+ {[%clk 0:00:10.1]} 66... Ke7 {[%clk 0:00:07]} 67. Nf4 {[%clk 0:00:11]}
67... Ne2 {[%clk 0:00:07.8]} 68. Nxe2 {[%clk 0:00:10.6]} 68... Kd6 {[%clk
0:00:08.2]} 69. Nf4 {[%clk 0:00:10.7]} 69... Ke7 {[%clk 0:00:09.1]} 70. Kg5
{[%clk 0:00:11.2]} 70... Kd6 {[%clk 0:00:10]} 71. Kf6 {[%clk 0:00:11.8]} 71...
Kc5 {[%clk 0:00:09.7]} 72. e7 {[%clk 0:00:12.2]} 72... Kd4 {[%clk 0:00:10.6]}
73. e8=Q {[%clk 0:00:11.9]} 73... Kc3 {[%clk 0:00:10.8]} 74. Ke5 {[%clk
0:00:12.1]} 74... Kd2 {[%clk 0:00:11.7]} 75. Kd4 {[%clk 0:00:12.4]} 75... Kc2
{[%clk 0:00:12.1]} 76. Kc4 {[%clk 0:00:12.6]} 76... Kb2 {[%clk 0:00:12.1]} 77.
Qe2+ {[%clk 0:00:13.1]} 77... Ka3 {[%clk 0:00:13]} 78. Qd2 {[%clk 0:00:11.3]}
78... Ka4 {[%clk 0:00:12.1]} 79. Ra6# {[%clk 0:00:12]} 1-0

[Event "*** Titled Tuesday Blitz"]
[Site "Chess.com"]
[Date "2021.02.09"]
[Round "8"]
[White "VALPARAISO37"]
[Black "Chuchofrio1"]
[Result "1-0"]
[WhiteElo "2469"]
[BlackElo "2306"]
[TimeControl "180+1"]
[EndTime "11:30:49 PST"]
[Termination "VALPARAISO37 won by checkmate"]

1. d4 {[%clk 0:02:56]} 1... Nf6 {[%clk 0:02:59.6]} 2. c4 {[%clk 0:02:52.5]} 2...
g6 {[%clk 0:02:59.6]} 3. Nc3 {[%clk 0:02:51.6]} 3... Bg7 {[%clk 0:03:00]} 4. e4
{[%clk 0:02:48.3]} 4... O-O {[%clk 0:02:58.7]} 5. f3 {[%clk 0:02:23.8]} 5... d6
{[%clk 0:02:55.3]} 6. Be3 {[%clk 0:02:23.4]} 6... e5 {[%clk 0:02:55.6]} 7. d5
{[%clk 0:02:22.8]} 7... Nbd7 {[%clk 0:02:56]} 8. Bd3 {[%clk 0:02:20.8]} 8... b6
{[%clk 0:02:54]} 9. Nge2 {[%clk 0:02:20.5]} 9... Nh5 {[%clk 0:02:47.5]} 10. Qd2
{[%clk 0:02:20.3]} 10... f5 {[%clk 0:02:44.8]} 11. O-O-O {[%clk 0:02:19.7]}
11... a6 {[%clk 0:02:38.4]} 12. Kb1 {[%clk 0:02:17.8]} 12... b5 {[%clk
0:02:29.6]} 13. cxb5 {[%clk 0:02:17.1]} 13... axb5 {[%clk 0:02:30.5]} 14. Bxb5
{[%clk 0:02:17.4]} 14... Nb6 {[%clk 0:02:28.2]} 15. Bxb6 {[%clk 0:02:08.3]}
15... cxb6 {[%clk 0:02:29.1]} 16. Bc6 {[%clk 0:02:07.5]} 16... Rb8 {[%clk
0:02:25.5]} 17. Nb5 {[%clk 0:02:07]} 17... Bb7 {[%clk 0:02:22.3]} 18. Rc1 {[%clk
0:02:05.6]} 18... fxe4 {[%clk 0:02:07.3]} 19. fxe4 {[%clk 0:02:04.8]} 19... Rf2
{[%clk 0:02:06.2]} 20. Qe3 {[%clk 0:02:03.6]} 20... Qf6 {[%clk 0:01:56.7]} 21.
Bxb7 {[%clk 0:01:59]} 21... Rxb7 {[%clk 0:01:57.6]} 22. Rc8+ {[%clk 0:01:57.9]}
22... Bf8 {[%clk 0:01:57.6]} 23. g3 {[%clk 0:01:37.8]} 23... Rf1+ {[%clk
0:01:43.5]} 24. Rxf1 {[%clk 0:01:34.1]} 24... Qxf1+ {[%clk 0:01:44.4]} 25. Kc2
{[%clk 0:01:32.7]} 25... Rf7 {[%clk 0:01:37.1]} 26. Nxd6 {[%clk 0:01:29.3]}
26... Rf2 {[%clk 0:01:35.8]} 27. Kd2 {[%clk 0:01:25.2]} 27... Rf3 {[%clk
0:01:35.3]} 28. Qxb6 {[%clk 0:01:16.3]} 28... Qb1 {[%clk 0:01:32.4]} 29. Rxf8+
{[%clk 0:01:07.8]} 29... Rxf8 {[%clk 0:01:18.1]} 30. Qb3 {[%clk 0:00:43.7]}
30... Nf6 {[%clk 0:01:05.2]} 31. a4 {[%clk 0:00:39]} 31... Nxe4+ {[%clk
0:01:03]} 32. Nxe4 {[%clk 0:00:39.3]} 32... Qxe4 {[%clk 0:01:03.9]} 33. d6+
{[%clk 0:00:38.4]} 33... Kh8 {[%clk 0:01:04.4]} 34. d7 {[%clk 0:00:34.1]} 34...
Rd8 {[%clk 0:01:03.6]} 35. Qe6 {[%clk 0:00:29.5]} 35... Qb4+ {[%clk 0:01:01]}
36. Kc1 {[%clk 0:00:28.1]} 36... Qc5+ {[%clk 0:00:56.9]} 37. Nc3 {[%clk
0:00:27.6]} 37... Qf8 {[%clk 0:00:49.4]} 38. Qxe5+ {[%clk 0:00:27.4]} 38... Kg8
{[%clk 0:00:47.6]} 39. Qe6+ {[%clk 0:00:26.9]} 39... Qf7 {[%clk 0:00:47.6]} 40.
Qxf7+ {[%clk 0:00:25.2]} 40... Kxf7 {[%clk 0:00:48.5]} 41. b4 {[%clk 0:00:25.4]}
41... Rxd7 {[%clk 0:00:48.7]} 42. a5 {[%clk 0:00:25.8]} 42... Ke6 {[%clk
0:00:49.2]} 43. b5 {[%clk 0:00:25.5]} 43... Kd6 {[%clk 0:00:47.6]} 44. Ne4+
{[%clk 0:00:22.7]} 44... Kc7 {[%clk 0:00:47.7]} 45. b6+ {[%clk 0:00:21.5]} 45...
Kb8 {[%clk 0:00:44.3]} 46. a6 {[%clk 0:00:18.9]} 46... Rd4 {[%clk 0:00:41.7]}
47. a7+ {[%clk 0:00:18.1]} 47... Ka8 {[%clk 0:00:40.1]} 48. Nc3 {[%clk
0:00:15.1]} 48... Rd6 {[%clk 0:00:34.6]} 49. Na4 {[%clk 0:00:15.5]} 49... Rd4
{[%clk 0:00:34.2]} 50. Nc3 {[%clk 0:00:13.9]} 50... Kb7 {[%clk 0:00:27.8]} 51.
Kc2 {[%clk 0:00:13.2]} 51... Rd6 {[%clk 0:00:20.7]} 52. Na4 {[%clk 0:00:13.2]}
52... Rd8 {[%clk 0:00:16.7]} 53. Kb3 {[%clk 0:00:13.2]} 53... Rc8 {[%clk
0:00:16]} 54. Kb4 {[%clk 0:00:13.3]} 54... Ka6 {[%clk 0:00:14.1]} 55. Kb3 {[%clk
0:00:11.4]} 55... h5 {[%clk 0:00:13.5]} 56. Kb4 {[%clk 0:00:11.1]} 56... g5
{[%clk 0:00:10.1]} 57. Kb3 {[%clk 0:00:11.1]} 57... Kb7 {[%clk 0:00:09.4]} 58.
Kb4 {[%clk 0:00:10.4]} 58... Ka6 {[%clk 0:00:09.7]} 59. Kb3 {[%clk 0:00:10.4]}
59... Kb7 {[%clk 0:00:09.3]} 60. Kb4 {[%clk 0:00:10.8]} 60... g4 {[%clk
0:00:10]} 61. Kb5 {[%clk 0:00:10.6]} 61... Ka8 {[%clk 0:00:09.9]} 62. Nc5 {[%clk
0:00:10.6]} 62... Re8 {[%clk 0:00:07.9]} 63. Ka6 {[%clk 0:00:10.5]} 63... Rb8
{[%clk 0:00:02]} 64. axb8=Q+ {[%clk 0:00:08.6]} 64... Kxb8 {[%clk 0:00:02.9]}
65. b7 {[%clk 0:00:08.9]} 65... Kc7 {[%clk 0:00:03.1]} 66. Ka7 {[%clk
0:00:09.1]} 66... Kc6 {[%clk 0:00:03.4]} 67. b8=Q {[%clk 0:00:09.4]} 67... Kxc5
{[%clk 0:00:04.3]} 68. Qf4 {[%clk 0:00:09.9]} 68... Kd5 {[%clk 0:00:04.1]} 69.
Qg5+ {[%clk 0:00:10.4]} 69... Kd4 {[%clk 0:00:05]} 70. Qxh5 {[%clk 0:00:11]}
70... Ke3 {[%clk 0:00:05.9]} 71. Qxg4 {[%clk 0:00:11.6]} 71... Kf2 {[%clk
0:00:06.8]} 72. Qh4 {[%clk 0:00:12.1]} 72... Kg1 {[%clk 0:00:07.7]} 73. g4
{[%clk 0:00:13]} 73... Kg2 {[%clk 0:00:08.6]} 74. g5 {[%clk 0:00:13.9]} 74...
Kg1 {[%clk 0:00:08.6]} 75. g6 {[%clk 0:00:14.8]} 75... Kg2 {[%clk 0:00:09]} 76.
g7 {[%clk 0:00:15.7]} 76... Kh1 {[%clk 0:00:09.9]} 77. Qg5 {[%clk 0:00:14]}
77... Kxh2 {[%clk 0:00:09.7]} 78. g8=Q {[%clk 0:00:13.9]} 78... Kh3 {[%clk
0:00:10.6]} 79. Qh7# {[%clk 0:00:14.3]} 1-0